fUSD/lending_fUSD_20250414
["ID","MTS","AMOUNT","RATE_DAILY","PERIOD"]
[357939549,1744603845582,-416.04,0.00019726,2]
[357939550,1744603845592,-500.0,0.00019726,2]
[357939551,1744603845602,-551.18556186,0.00019726,2]
[357939552,1744603845612,-500.0,0.00019726,2]
[357939553,1744603845621,-298.26830961,0.00019726,2]
[357939554,1744603845631,-952.84,0.00019726,2]
[357939555,1744603845640,-291.09801206,0.00019726,2]
[357939556,1744603845650,-500.0,0.00019726,2]
[357939557,1744603845659,-178.15928851,0.00019726,2]
[357939558,1744603845670,-406.58251424,0.00019726,2]
[357939559,1744603845680,-233.33927667,0.00019726,2]
[357939560,1744603845689,-500.0,0.00019726,2]
[357939561,1744603845699,-500.0,0.00019726,2]
[357939562,1744603845709,-569.22868221,0.00019726,2]
[357939563,1744603845718,-517.48353604,0.00019726,2]
[357939564,1744603845728,-500.0,0.00019726,2]
[357939565,1744603845737,-500.0,0.00019726,2]
[357939566,1744603845747,-500.0,0.00019726,2]
[357939567,1744603845756,-500.0,0.00019726,2]
[357939568,1744603845766,-500.0,0.00019726,2]
[357939569,1744603845776,-658.14,0.00019726,2]
[357939570,1744603845786,-500.0,0.00019726,2]
[357939571,1744603845796,-500.0,0.00019726,2]
[357939572,1744603845806,-500.0,0.00019726,2]
[357939573,1744603845815,-683.24,0.00019726,2]
[357939574,1744603845825,-474.15815719,0.00019726,2]
[357939575,1744603845834,-500.0,0.00019726,2]
[357939576,1744603845844,-500.0,0.00019726,2]
[357939577,1744603845854,-500.0,0.00019726,2]
[357939578,1744603845864,-521.24087855,0.00019726,2]
[357939579,1744603845874,-500.0,0.00019726,2]
[357939580,1744603845884,-500.0,0.00019726,2]
[357939581,1744603845897,-567.18765879,0.00019726,2]
[357939582,1744603845907,-344.33932988,0.00019726,2]
[357939583,1744603845917,-500.0,0.00019726,2]
[357939584,1744603845927,-500.0,0.00019726,2]
[357939585,1744603845938,-500.0,0.00019726,2]
[357939586,1744603845947,-255.39,0.00019726,2]
[357939587,1744603845957,-326.4400145,0.00019726,2]
[357939589,1744603845969,-500.0,0.00019726,2]
[357939590,1744603845980,-177.94958251,0.00019726,2]
[357939591,1744603845989,-500.0,0.00019726,2]
[357939592,1744603845999,-657.22,0.00019726,2]
[357939593,1744603846008,-500.0,0.00019726,2]
[357939595,1744603846018,-442.21008805,0.00019726,2]
[357939596,1744603846027,-500.0,0.00019726,2]
[357939597,1744603846036,-500.0,0.00019726,2]
[357939598,1744603846045,-541.58,0.00019726,2]
[357939599,1744603846056,-154.30620524,0.00019726,2]
[357939600,1744603846065,-500.0,0.00019726,2]
[357939601,1744603846075,-500.0,0.00019726,2]
[357939602,1744603846084,-500.0,0.00019726,2]
[357939603,1744603846094,-1136.05129862,0.00019726,2]
[357939604,1744603846103,-499.06606387,0.00019726,2]
[357939605,1744603846112,-364.21581263,0.00019726,2]
[357939606,1744603846122,-500.0,0.00019726,2]
[357939607,1744603846132,-500.0,0.00019726,2]
[357939608,1744603846141,-783.82,0.00019726,2]
[357939609,1744603846151,-7145.1,0.00019726,2]
[357939610,1744603846161,-555.4,0.00019726,2]
[357939611,1744603846171,-533.91970149,0.00019726,2]
[357939612,1744603846180,-500.0,0.00019726,2]
[357939613,1744603846190,-500.0,0.00019726,2]
[357939614,1744603846199,-500.0,0.00019726,2]
[357939615,1744603846209,-500.0,0.00019726,2]
[357939616,1744603846219,-193.81222759,0.00019726,2]
[357939617,1744603846229,-500.0,0.00019726,2]
[357939618,1744603846238,-536.35015639,0.00019726,2]
[357939619,1744603846248,-500.0,0.00019726,2]
[357939620,1744603846257,-402.82047754,0.00019743,2]
[357939621,1744603846267,-163106.29230984,0.00019744,2]
[357939622,1744603846276,-506.65560048,0.00019773,2]
[357939623,1744603846286,-509.08900326,0.00019773,2]
[357939624,1744603846296,-500.0,0.00019773,2]
[357939625,1744603846305,-1860.52809307,0.00019778,2]
[357939626,1744603846315,-597.999,0.00019792,2]
[357939627,1744603846324,-163106.29230984,0.00019792,2]
[357939628,1744603846334,-358.029397,0.00019799,2]
[357939629,1744603846343,-203.4576879,0.00019809,2]
[357939630,1744603846352,-1860.52809307,0.00019839,2]
[357939631,1744603846362,-500.0,0.00019863,2]
[357939632,1744603846370,-500.0,0.00019863,2]
[357939633,1744603846379,-500.0,0.00019863,2]
[357939634,1744603846389,-500.0,0.00019863,2]
[357939635,1744603846399,-486.056079,0.00019863,2]
[357939636,1744603846408,-500.0,0.00019863,2]
[357939637,1744603846418,-500.0,0.00019863,2]
[357939638,1744603846428,-500.0,0.00019863,2]
[357939639,1744603846438,-500.0,0.00019863,2]
[357939640,1744603846447,-500.0,0.00019863,2]
[357939641,1744603846457,-500.0,0.00019863,2]
[357939642,1744603846467,-500.0,0.00019863,2]
[357939643,1744603846477,-320.344021,0.00019863,2]
[357939644,1744603846487,-500.0,0.00019863,2]
[357939645,1744603846496,-500.0,0.00019863,2]
[357939646,1744603846506,-500.0,0.00019863,2]
[357939647,1744603846515,-500.0,0.00019863,2]
[357939648,1744603846525,-500.0,0.00019863,2]
[357939649,1744603846534,-500.0,0.00019863,2]
[357939650,1744603846543,-300.0,0.00019874,2]
[357939651,1744603846553,-2559.774,0.00019898,2]
[357939652,1744603846563,-152.0,0.00019898,2]
[357939653,1744603846575,-216.46539829,0.000199,2]
[357939654,1744603846586,-194.36210043,0.000199,2]
[357939655,1744603846595,-203.4576879,0.000199,2]
[357939656,1744603846605,-565.8645223,0.000199,2]
[357939657,1744603846615,-1860.52809307,0.000199,2]
[357939658,1744603846625,-298.1043329,0.00019986,2]
[357939659,1744603846634,-9660.182243,0.00019986,2]
[357939660,1744603846644,-726.7707417,0.00019986,2]
[357939661,1744603846654,-612.7798808,0.00019986,2]
[357939662,1744603846664,-624.44630706,0.00019986,2]
[357939663,1744603846674,-2408.4325082,0.00019986,2]
[357939664,1744603846684,-150.0,0.00019998,2]
[357939665,1744603846693,-2047.0,0.00019998,2]
[357939666,1744603846703,-1287.0,0.00019998,2]
[357939667,1744603846713,-1328.0,0.00019998,2]
[357939668,1744603846723,-791.0,0.00019998,2]
[357939669,1744603846733,-1279.0,0.00019998,2]
[357939670,1744603846742,-545.0,0.00019998,2]
[357939671,1744603846752,-907.0,0.00019998,2]
[357939672,1744603846762,-1438.0,0.00019998,2]
[357939673,1744603846772,-4148.0,0.00019998,2]
[357939674,1744603846782,-575.0,0.00019998,2]
[357939675,1744603846792,-300.0,0.00019999,2]
[357939676,1744603846801,-91149.30355426,0.0002,2]
[357939677,1744603846813,-262.45863438,0.0002,2]
[357939678,1744603846823,-647563.82133118,0.0002,2]
[357939679,1744603846842,-7148.67782959,0.0002,2]
[357939680,1744603846853,-45981.07251855,0.0002,2]
[357939681,1744603846865,-468.67334615,0.0002,2]
[357939682,1744603846877,-35362.41582812,0.0002,2]
[357939683,1744603846891,-2875.80287467,0.0002,2]
[357939684,1744603846904,-1867.34186428,0.0002,2]
[357939685,1744603846916,-362.3607522,0.0002,2]
[357939686,1744603846928,-407.825,0.0002,2]
[357939687,1744603846941,-845.06326688,0.0002,2]
[357939688,1744603846953,-1005.32904095,0.0002,2]
[357939689,1744603847000,-406129.41428132,0.0002,2]
[357939690,1744603847011,-9196.43880493,0.0002,2]
[357939691,1744603848741,-233.14,0.00019178,2]
[357939692,1744603849518,-266.86,0.00019178,2]
[357939693,1744603849529,-500.0,0.00019178,2]
[357939694,1744603849543,-500.0,0.00019178,2]
[357939695,1744603849554,-500.0,0.00019178,2]
[357939696,1744603849566,-213.89195067,0.00019452,2]
[357939697,1744603849578,-908.40529946,0.0002,2]
[357939698,1744603849703,-1387.357,0.0002,2]
[357939699,1744603917542,159.072724,0.0002,4]
[357939700,1744604129956,203.68,0.00016712,2]
[357939703,1744604343380,46.32,0.00017869,2]
[357939704,1744604343411,3212.2983392,0.00017869,2]
[357939705,1744604343443,1826.9908976,0.00017869,2]
[357939706,1744604344200,-239.58272024,0.00017869,2]
[357939707,1744604590904,1699.50740366,0.00017414,2]
[357939708,1744604590933,1797.24088907,0.00017414,2]
[357939709,1744604590961,1229.25170727,0.00017414,2]
[357939710,1744604616372,157.870258,0.0002,4]
[357939711,1744604616650,157.870258,0.0002,4]
[357939712,1744604617071,157.870258,0.0002,4]
[357939713,1744604835158,418.24456458,0.00015,2]
[357939714,1744604835188,1389.05738742,0.00015,2]
[357939715,1744604866989,557.7620488,0.00016223,2]
[357939716,1744604867020,443.6679512,0.00016223,2]
[357939717,1744604867809,-250.0,0.00017827,2]
[357939725,1744604986557,429.21,0.000175,7]
[357939735,1744605032504,-257.24703588,0.000181,2]
[357939736,1744605032514,-48.24296418,0.00018144,2]
[357939737,1744605032525,-191.33975606,0.00018144,2]
[357939738,1744605032535,-200.0,0.00018173,2]
[357939739,1744605032544,-1841.65909508,0.000182,2]
[357939740,1744605032565,-450.037073,0.000182,2]
[357939770,1744605038464,-2833.56302507,0.000182,2]
[357939771,1744605038474,-288.33,0.00018244,2]
[357939772,1744605038484,-221.62,0.00018244,2]
[357939773,1744605038495,-1000.0,0.00018267,2]
[357939774,1744605038504,-171.64,0.00018377,2]
[357939775,1744605038514,-300.0,0.00018399,2]
[357939776,1744605038524,-10000.0,0.000184,2]
[357939777,1744605038533,-1001.43,0.00018487,2]
[357939778,1744605038543,-189.25,0.00018499,2]
[357939779,1744605038552,-23900.0,0.00018562,2]
[357939780,1744605038562,-389.33311822,0.0001864,2]
[357939781,1744605038571,-526.62611817,0.00018673,2]
[357939782,1744605038580,-10976.78,0.00018673,2]
[357939783,1744605038590,-6159.56,0.00018673,2]
[357939784,1744605038599,-8453.11,0.00018673,2]
[357939785,1744605038608,-12011.46,0.00018673,2]
[357939786,1744605038617,-165.73,0.00018817,2]
[357939787,1744605038627,-160.88,0.00018914,2]
[357939788,1744605038637,-1300.0,0.00018972,2]
[357939789,1744605038646,-398.0,0.00019,2]
[357939790,1744605038656,-47540.62506382,0.00019,2]
[357939791,1744605038667,-8980.8546601,0.00019,2]
[357939792,1744605038677,-250.0,0.00019,2]
[357939793,1744605038687,-250.0,0.00019,2]
[357939795,1744605038696,-651.08,0.00019052,2]
[357939797,1744605038705,-565.8645223,0.00019078,2]
[357939798,1744605038714,-283.0528,0.00019078,2]
[357939799,1744605038724,-14503.38275758,0.00019078,2]
[357939800,1744605038736,-22460.94189147,0.00019078,2]
[357939801,1744605038747,-2118.66485095,0.00019078,2]
[357939802,1744605038757,-442.1948,0.00019078,2]
[357939803,1744605038767,-389.33311822,0.00019126,2]
[357939804,1744605038777,-439.42522984,0.00019168,2]
[357939978,1744605040815,-399.81320114,0.00019168,2]
[357939984,1744605040873,-1565.11156902,0.00019168,2]
[357939986,1744605040883,-233.14,0.00019173,2]
[357939988,1744605040892,-13072.73678646,0.00019177,2]
[357939990,1744605040902,-238.19335234,0.00019177,2]
[357939991,1744605040911,-229.06953959,0.00019177,2]
[357939993,1744605040921,-208.78427527,0.00019177,2]
[357939995,1744605040931,-500.0,0.00019178,2]
[357939997,1744605040940,-510.80408709,0.00019178,2]
[357939999,1744605040951,-500.0,0.00019178,2]
[357940001,1744605040962,-500.0,0.00019178,2]
[357940003,1744605040971,-500.0,0.00019178,2]
[357940004,1744605040982,-500.0,0.00019178,2]
[357940006,1744605040992,-519.90295627,0.00019178,2]
[357940008,1744605041001,-316.25023813,0.00019178,2]
[357940010,1744605041011,-500.0,0.00019178,2]
[357940012,1744605041020,-500.0,0.00019178,2]
[357940014,1744605041029,-500.0,0.00019178,2]
[357940015,1744605041038,-500.40265757,0.00019178,2]
[357940017,1744605041048,-500.0,0.00019178,2]
[357940019,1744605041058,-500.0,0.00019178,2]
[357940021,1744605041068,-500.0,0.00019178,2]
[357940023,1744605041078,-500.0,0.00019178,2]
[357940025,1744605041087,-500.0,0.00019178,2]
[357940027,1744605041096,-500.0,0.00019178,2]
[357940029,1744605041106,-500.61146988,0.00019178,2]
[357940032,1744605041115,-205.26252469,0.00019178,2]
[357940034,1744605041125,-500.0,0.00019178,2]
[357940036,1744605041134,-500.14064004,0.00019178,2]
[357940038,1744605041144,-500.0,0.00019178,2]
[357940040,1744605041153,-500.0,0.00019178,2]
[357940041,1744605041162,-516.14113096,0.00019178,2]
[357940043,1744605041172,-500.0,0.00019178,2]
[357940045,1744605041181,-500.0,0.00019178,2]
[357940047,1744605041191,-531.89,0.00019178,2]
[357940048,1744605041200,-582.01268953,0.00019178,2]
[357940050,1744605041210,-500.0,0.00019178,2]
[357940052,1744605041219,-500.0,0.00019178,2]
[357940054,1744605041228,-500.0,0.00019178,2]
[357940056,1744605041238,-166.95463933,0.00019178,2]
[357940058,1744605041248,-500.0,0.00019178,2]
[357940059,1744605041257,-500.0,0.00019178,2]
[357940062,1744605041271,-500.0,0.00019178,2]
[357940063,1744605041280,-500.0,0.00019178,2]
[357940065,1744605041295,-500.0,0.00019178,2]
[357940067,1744605041304,-611.65596569,0.00019178,2]
[357940069,1744605041313,-500.0,0.00019178,2]
[357940071,1744605041323,-500.0,0.00019178,2]
[357940073,1744605041332,-500.0,0.00019178,2]
[357940075,1744605041342,-417.07669203,0.00019178,2]
[357940077,1744605041352,-500.0,0.00019178,2]
[357940079,1744605041361,-500.0,0.00019178,2]
[357940081,1744605041373,-576.18503755,0.00019178,2]
[357940082,1744605041382,-500.0,0.00019178,2]
[357940084,1744605041391,-500.0,0.00019178,2]
[357940086,1744605041401,-527.52991898,0.00019178,2]
[357940088,1744605041410,-500.0,0.00019178,2]
[357940089,1744605041420,-524.46007521,0.00019178,2]
[357940090,1744605041429,-500.0,0.00019178,2]
[357940091,1744605041439,-516.49063189,0.00019178,2]
[357940092,1744605041448,-510.90787823,0.00019178,2]
[357940093,1744605041458,-506.95338107,0.00019178,2]
[357940094,1744605041467,-500.0,0.00019178,2]
[357940095,1744605041481,-500.0,0.00019178,2]
[357940096,1744605041490,-509.70222696,0.00019178,2]
[357940097,1744605041499,-500.0,0.00019178,2]
[357940098,1744605041509,-500.0,0.00019178,2]
[357940099,1744605041518,-500.0,0.00019178,2]
[357940100,1744605041527,-500.0,0.00019178,2]
[357940101,1744605041536,-500.0,0.00019178,2]
[357940102,1744605041545,-502.39606494,0.00019178,2]
[357940103,1744605041555,-500.0,0.00019178,2]
[357940104,1744605041566,-500.0,0.00019178,2]
[357940105,1744605041576,-500.0,0.00019178,2]
[357940106,1744605041586,-500.0,0.00019178,2]
[357940107,1744605041595,-500.0,0.00019178,2]
[357940109,1744605041604,-500.0,0.00019178,2]
[357940110,1744605041613,-500.0,0.00019178,2]
[357940112,1744605041623,-500.0,0.00019178,2]
[357940114,1744605041632,-500.0,0.00019178,2]
[357940116,1744605041641,-500.0,0.00019178,2]
[357940118,1744605041650,-500.0,0.00019178,2]
[357940120,1744605041660,-500.0,0.00019178,2]
[357940122,1744605041670,-504.5882389,0.00019178,2]
[357940124,1744605041679,-503.7172172,0.00019178,2]
[357940126,1744605041689,-509.28842295,0.00019178,2]
[357940128,1744605041698,-500.0,0.00019178,2]
[357940130,1744605041707,-505.05122693,0.00019178,2]
[357940132,1744605041716,-201.22400491,0.00019178,2]
[357940134,1744605041726,-502.29551206,0.00019178,2]
[357940136,1744605041736,-500.0,0.00019178,2]
[357940138,1744605041745,-500.0,0.00019178,2]
[357940140,1744605041754,-500.0,0.00019178,2]
[357940142,1744605041763,-511.34136429,0.00019178,2]
[357940144,1744605041772,-515.8592045,0.00019178,2]
[357940146,1744605041781,-500.0,0.00019178,2]
[357940148,1744605041791,-619.36576898,0.00019178,2]
[357940149,1744605041800,-519.56061663,0.00019178,2]
[357940151,1744605041810,-518.44138119,0.00019178,2]
[357940154,1744605041819,-523.152144,0.00019178,2]
[357940155,1744605041828,-500.0,0.00019178,2]
[357940158,1744605041838,-516.11788427,0.00019178,2]
[357940160,1744605041847,-500.0,0.00019178,2]
[357940161,1744605041856,-500.0,0.00019178,2]
[357940163,1744605041866,-552.36,0.00019178,2]
[357940165,1744605041875,-500.0,0.00019178,2]
[357940167,1744605041885,-527.92281176,0.00019178,2]
[357940169,1744605041895,-500.0,0.00019178,2]
[357940171,1744605041904,-514.49839642,0.00019178,2]
[357940173,1744605041914,-541.89432052,0.00019178,2]
[357940175,1744605041923,-500.37609689,0.00019178,2]
[357940177,1744605041932,-525.13951229,0.00019178,2]
[357940179,1744605041942,-500.0,0.00019178,2]
[357940181,1744605041953,-500.0,0.00019178,2]
[357940184,1744605041963,-558.31522533,0.00019178,2]
[357940186,1744605041972,-500.0,0.00019178,2]
[357940187,1744605041983,-500.0,0.00019178,2]
[357940189,1744605041992,-500.0,0.00019178,2]
[357940191,1744605042002,-525.26743362,0.00019178,2]
[357940193,1744605042011,-577.27502948,0.00019178,2]
[357940195,1744605042021,-560.52572256,0.00019178,2]
[357940197,1744605042031,-500.0,0.00019178,2]
[357940199,1744605042040,-512.51850446,0.00019178,2]
[357940202,1744605042050,-543.67831194,0.00019178,2]
[357940203,1744605042059,-535.31414727,0.00019178,2]
[357940206,1744605042069,-502.74909278,0.00019178,2]
[357940208,1744605042079,-500.0,0.00019178,2]
[357940210,1744605042088,-512.68931907,0.00019178,2]
[357940212,1744605042098,-559.7606106,0.00019178,2]
[357940214,1744605042108,-509.68297613,0.00019178,2]
[357940215,1744605042117,-523.82117931,0.00019178,2]
[357940217,1744605042127,-504.49137089,0.00019178,2]
[357940219,1744605042136,-553.65044687,0.00019178,2]
[357940222,1744605042147,-500.0,0.00019178,2]
[357940224,1744605042156,-516.58750075,0.00019178,2]
[357940226,1744605042165,-530.93407784,0.00019178,2]
[357940228,1744605042175,-517.70483316,0.00019178,2]
[357940230,1744605042184,-500.0,0.00019178,2]
[357940232,1744605042194,-622.57082015,0.00019178,2]
[357940234,1744605042204,-511.1451517,0.00019178,2]
[357940236,1744605042213,-500.0,0.00019178,2]
[357940238,1744605042223,-500.0,0.00019178,2]
[357940240,1744605042233,-533.71263138,0.00019178,2]
[357940242,1744605042242,-516.69110137,0.00019178,2]
[357940243,1744605042253,-500.94984639,0.00019178,2]
[357940245,1744605042263,-502.74995292,0.00019178,2]
[357940247,1744605042272,-518.44462468,0.00019178,2]
[357940249,1744605042282,-367.41462849,0.00019178,2]
[357940251,1744605042294,-537.9484696,0.00019178,2]
[357940253,1744605042303,-493.6305521,0.00019178,2]
[357940255,1744605042312,-552.53203959,0.00019178,2]
[357940257,1744605042322,-500.0,0.00019178,2]
[357940259,1744605042332,-581.59926882,0.00019178,2]
[357940261,1744605042341,-538.67944227,0.00019178,2]
[357940263,1744605042351,-500.0,0.00019178,2]
[357940265,1744605042361,-194.52300246,0.00019178,2]
[357940267,1744605042371,-500.0,0.00019178,2]
[357940269,1744605042381,-520.76800695,0.00019178,2]
[357940271,1744605042390,-500.0,0.00019178,2]
[357940273,1744605042399,-368.84,0.00019178,2]
[357940275,1744605042410,-520.45486111,0.00019178,2]
[357940277,1744605042420,-542.35,0.00019178,2]
[357940279,1744605042430,-525.26669037,0.00019178,2]
[357940281,1744605042439,-500.0,0.00019178,2]
[357940283,1744605042449,-500.0,0.00019178,2]
[357940284,1744605042458,-529.45073457,0.00019178,2]
[357940287,1744605042469,-500.0,0.00019178,2]
[357940289,1744605042480,-534.93323376,0.00019178,2]
[357940290,1744605042490,-506.1456171,0.00019178,2]
[357940293,1744605042499,-500.0,0.00019178,2]
[357940295,1744605042509,-500.0,0.00019178,2]
[357940296,1744605042518,-500.0,0.00019178,2]
[357940298,1744605042527,-566.31403218,0.00019178,2]
[357940300,1744605042538,-500.0,0.00019178,2]
[357940303,1744605042548,-523.14913676,0.00019178,2]
[357940305,1744605042557,-500.0,0.00019178,2]
[357940306,1744605042567,-504.40464685,0.00019178,2]
[357940308,1744605042576,-500.0,0.00019178,2]
[357940310,1744605042585,-506.18927396,0.00019178,2]
[357940312,1744605042594,-500.0,0.00019178,2]
[357940314,1744605042603,-500.0,0.00019178,2]
[357940316,1744605042612,-572.53742257,0.00019178,2]
[357940318,1744605042622,-504.68696409,0.00019178,2]
[357940320,1744605042631,-500.0,0.00019178,2]
[357940322,1744605042641,-500.0,0.00019178,2]
[357940324,1744605042650,-506.62577607,0.00019178,2]
[357940326,1744605042659,-500.0,0.00019178,2]
[357940328,1744605042668,-599.00519801,0.00019178,2]
[357940330,1744605042678,-500.0,0.00019178,2]
[357940332,1744605042687,-500.0,0.00019178,2]
[357940334,1744605042696,-504.25568417,0.00019178,2]
[357940336,1744605042706,-198.46,0.00019178,2]
[357940338,1744605042715,-571.56307537,0.00019178,2]
[357940340,1744605042724,-598.14,0.00019178,2]
[357940342,1744605042734,-508.76426947,0.00019178,2]
[357940344,1744605042743,-500.0,0.00019178,2]
[357940346,1744605042752,-500.0,0.00019178,2]
[357940348,1744605042762,-521.38186262,0.00019178,2]
[357940350,1744605042772,-500.0,0.00019178,2]
[357940351,1744605042781,-509.80416504,0.00019178,2]
[357940354,1744605042790,-502.68892414,0.00019178,2]
[357940355,1744605042800,-500.0,0.00019178,2]
[357940357,1744605042809,-529.82867513,0.00019178,2]
[357940359,1744605042818,-500.0,0.00019178,2]
[357940361,1744605042832,-500.0,0.00019178,2]
[357940363,1744605042842,-531.9,0.00019178,2]
[357940365,1744605042851,-331.40789487,0.00019178,2]
[357940367,1744605042860,-502.63140376,0.00019178,2]
[357940369,1744605042869,-500.0,0.00019178,2]
[357940371,1744605042879,-500.0,0.00019178,2]
[357940373,1744605042888,-500.0,0.00019178,2]
[357940375,1744605042897,-183.27769322,0.00019178,2]
[357940377,1744605042907,-500.0,0.00019178,2]
[357940380,1744605042916,-564.453578,0.00019178,2]
[357940381,1744605042926,-501.77840967,0.00019178,2]
[357940384,1744605042935,-501.33695362,0.00019178,2]
[357940386,1744605042944,-500.0,0.00019178,2]
[357940388,1744605042954,-507.24349438,0.00019178,2]
[357940389,1744605042963,-500.0,0.00019178,2]
[357940391,1744605042972,-519.64076073,0.00019178,2]
[357940393,1744605042982,-501.86339107,0.00019178,2]
[357940395,1744605042992,-517.1034608,0.00019178,2]
[357940397,1744605043002,-545.65487686,0.00019178,2]
[357940399,1744605043011,-502.17278543,0.00019178,2]
[357940419,1744605043185,-527.81210294,0.00019178,2]
[357940421,1744605043194,-502.23443469,0.00019178,2]
[357940423,1744605043204,-509.47900133,0.00019178,2]
[357940425,1744605043213,-510.07237501,0.00019178,2]
[357940427,1744605043223,-576.51323984,0.00019178,2]
[357940429,1744605043232,-525.26980755,0.00019178,2]
[357940431,1744605043241,-501.43575432,0.00019178,2]
[357940433,1744605043251,-537.06304719,0.00019178,2]
[357940435,1744605043260,-500.0,0.00019178,2]
[357940437,1744605043269,-560.44197647,0.00019178,2]
[357940440,1744605043279,-567.19685884,0.00019178,2]
[357940442,1744605043290,-500.0,0.00019178,2]
[357940444,1744605043300,-516.33583586,0.00019178,2]
[357940446,1744605043310,-500.0,0.00019178,2]
[357940448,1744605043319,-504.7013023,0.00019178,2]
[357940450,1744605043328,-551.01156463,0.00019178,2]
[357940452,1744605043338,-502.56344051,0.00019178,2]
[357940454,1744605043348,-195.14679005,0.00019178,2]
[357940456,1744605043357,-500.0,0.00019178,2]
[357940458,1744605043368,-501.1978616,0.00019178,2]
[357940460,1744605043377,-505.0296058,0.00019178,2]
[357940462,1744605043387,-546.7408207,0.00019178,2]
[357940464,1744605043396,-532.75542685,0.00019178,2]
[357940466,1744605043405,-527.67813584,0.00019178,2]
[357940468,1744605043415,-507.04024845,0.00019178,2]
[357940470,1744605043425,-519.39316378,0.00019178,2]
[357940472,1744605043439,-316.57391382,0.00019178,2]
[357940474,1744605043448,-523.16666757,0.00019178,2]
[357940476,1744605043458,-500.0,0.00019178,2]
[357940478,1744605043467,-530.01031298,0.00019178,2]
[357940480,1744605043477,-629.84,0.00019178,2]
[357940482,1744605043487,-520.58721162,0.00019178,2]
[357940484,1744605043496,-539.47460446,0.00019178,2]
[357940486,1744605043505,-516.79043411,0.00019178,2]
[357940488,1744605043515,-500.0,0.00019178,2]
[357940490,1744605043524,-500.0,0.00019178,2]
[357940492,1744605043534,-500.0,0.00019178,2]
[357940494,1744605043543,-500.0,0.00019178,2]
[357940496,1744605043552,-285.02979673,0.00019178,2]
[357940498,1744605043561,-500.0,0.00019178,2]
[357940500,1744605043571,-520.95569493,0.00019178,2]
[357940502,1744605043581,-500.0,0.00019178,2]
[357940504,1744605043591,-554.98,0.00019178,2]
[357940506,1744605043600,-500.0,0.00019178,2]
[357940508,1744605043609,-507.71554151,0.00019178,2]
[357940510,1744605043618,-521.76999758,0.00019178,2]
[357940512,1744605043628,-536.5380827,0.00019178,2]
[357940514,1744605043637,-500.0,0.00019178,2]
[357940516,1744605043647,-508.98537834,0.00019178,2]
[357940518,1744605043656,-500.0,0.00019178,2]
[357940520,1744605043666,-513.88955592,0.00019178,2]
[357940522,1744605043675,-500.0,0.00019178,2]
[357940524,1744605043684,-504.97448752,0.00019178,2]
[357940526,1744605043694,-521.18383895,0.00019178,2]
[357940528,1744605043703,-500.0,0.00019178,2]
[357940529,1744605043712,-516.54017498,0.00019178,2]
[357940532,1744605043723,-501.3643911,0.00019178,2]
[357940534,1744605043732,-994.27,0.00019178,2]
[357940535,1744605043741,-520.12344015,0.00019178,2]
[357940537,1744605043750,-516.27354748,0.00019178,2]
[357940539,1744605043760,-274.02016741,0.00019178,2]
[357940541,1744605043769,-529.2465344,0.00019178,2]
[357940543,1744605043778,-525.2701013,0.00019178,2]
[357940545,1744605043787,-621.04747464,0.00019178,2]
[357940547,1744605043796,-500.0,0.00019178,2]
[357940549,1744605043806,-500.0,0.00019178,2]
[357940551,1744605043815,-520.3212046,0.00019178,2]
[357940553,1744605043824,-500.0,0.00019178,2]
[357940555,1744605043834,-500.0,0.00019178,2]
[357940557,1744605043843,-500.0,0.00019178,2]
[357940559,1744605043852,-500.0,0.00019178,2]